[Event "37th ECCC 2022"]
[Site "Mayrhofen"]
[Date "2022.10.06"]
[Round "4.48"]
[White "Wickenfeld, Stefan"]
[Black "Rafiee, Makan"]
[Result "1-0"]
[ECO "C50"]
[WhiteElo "2173"]
[BlackElo "2316"]
[Annotator "TA"]
[PlyCount "79"]
[EventDate "2022.10.03"]
[EventType "team-tourn"]
[EventCountry "AUT"]
[SourceTitle "playchess.com"]
[Source "ChessBase"]
[SourceQuality "1"]
[TimeControl "40/5400+30:1800+30"]

{[%evp 22,79,28,34,36,9,14,19,19,17,37,31,48,40,39,35,45,10,0,7,4,6,6,6,12,2,14,-11,-11,-14,-11,-12,-7,-22,0,0,-4,-50,-50,-50,-31,-52,0,-13,22,0,0,0,0,0,0,0,1627,1405,1546,1432,2032,1987,1881,1725]} 1. e4 {[%emt 0:00:02]} e5 {[%emt 0:00:10]} 2. Nf3 {[%emt 0:00:06]} Nc6 {[%emt 0:00:06]} 3. Bc4 {[%emt 0:00:05]} Nf6 {[%emt 0:00:37]} 4. d3 {[%emt 0:00:48]} Bc5 {[%emt 0:00:14]} 5. c3 {[%emt 0:00:22]} d6 {[%emt 0:00:59]} 6. h3 {[%emt 0:00:43]} h6 {[%emt 0:02:02]} 7. Nbd2 {[%emt 0:00:38]} a6 {[%emt 0:02:09]} 8. Bb3 {[%emt 0:00:16]} O-O {[%emt 0:00:37]} 9. O-O {[%emt 0:01:06]} Ba7 {[%emt 0:01:37]} 10. Re1 {[%emt 0:02:38]} Ne7 {[%emt 0:01:46] 10...Re8 is becoming the main line.} 11. Nf1 {[%emt 0:00:33]} Ng6 {[%emt 0:00:38]} 12. Ng3 {[%emt 0:01:28]} Be6 {[%emt 0:17:15] C54: Giuoco Piano: 4 c3 Nf6, main lines with 5 d4 and 5 d3.} 13. Bxe6 {[%emt 0:07:12]} fxe6 {[%emt 0:00:05]} 14. Qb3 {[%emt 0:00:24][%csl LRb7,LRe6]} Qd7 {[%emt 0:00:22] The position is equal.} 15. d4 {[%emt 0:02:12]} Kh7 {[%emt 0:08:10]} 16. Be3 {[%emt 0:01:37]} ({But not} 16. Qxb7 $2 Bb6 17. d5 Ne7 $19) 16... exd4 {[%emt 0:11:31]} 17. cxd4 {[%emt 0:01:16] [#]} c6 $146 {[%emt 0:03:27]} ({Predecessor:} 17... e5 18. dxe5 Bxe3 19. Qxe3 dxe5 20. Red1 Qb5 21. b3 Rad8 22. Rac1 Rxd1+ 23. Rxd1 Rf7 {0-1 (68) Odor,I (1872)-Ter,M (2043) Hungary 2009}) 18. Rad1 {[%emt 0:10:00]} Kh8 {[%emt 0:21:41]} 19. Ne5 {[%emt 0:14:26]} dxe5 {[%emt 0:03:09]} 20. dxe5 {[%emt 0:00:16]} Nd5 $1 {[%emt 0:02:03]} 21. Bxa7 {[%emt 0:01:15]} Rxa7 {[%emt 0:00:10]} 22. exd5 {[%emt 0:00:07]} cxd5 {[%emt 0:00:12]} 23. Rc1 {[%emt 0:29:59]} Raa8 {[%emt 0:01:45]} 24. Qc2 {[%emt 0:07:06]} Qf7 {[%emt 0:04:17][%cal Oa8c8]} 25. Qd2 $1 {[%emt 0:05:31]} Rac8 {[%emt 0:01:05]} 26. Rxc8 {[%emt 0:03:30]} Rxc8 {[%emt 0:00:37]} 27. Re3 {[%emt 0:01:38]} Qf4 {[%emt 0:04:52]} 28. Ne2 {[%emt 0:00:49]} Qg5 {[%emt 0:00:15]} 29. Kh2 {[%emt 0:06:28]} (29. g3 $11 {was preferrable.}) 29... Nh4 $1 $15 {[%emt 0:08:40][%csl Gh4][%cal Rg5g2] [#]} 30. Ng3 {[%emt 0:01:08]} Qf4 {[%emt 0:02:19]} 31. Re2 {[%emt 0:00:58]} Qc4 {[%emt 0:01:45]} (31... Ng6 $15) 32. b3 {[%emt 0:00:42]} Qc1 {[%emt 0:00:50]} 33. Qd4 {[%emt 0:00:47]} (33. Qb4 $5 {[%cal Rb4h4]} Ng6 34. Qxb7 $11) 33... Ng6 {[%emt 0:00:11]} 34. Qg4 {[%emt 0:00:19][%csl LRe6,LRg6]} Nf4 {[%emt 0:01:04]} 35. Re3 {[%emt 0:00:35]} Rf8 {[%emt 0:00:42]} 36. Rf3 $40 {[%emt 0:00:32][%mdl 128] White is up to no good.} d4 $2 {[%emt 0:00:36][%mdl 8192]} (36... Rf7 $11) 37. Ne2 {[%emt 0:00:38][%cal Bg3e2,Be2f4,Bf4g6][%mdl 32] White is clearly winning.} Qc7 {[%emt 0:00:29]} 38. Nxf4 {[%emt 0:00:29] [#] Threatening mate with Ng6+.} Qxe5 {[%emt 0:00:28]} 39. g3 {[%emt 0:00:02] White threatens Ng6+ and mate.} Kh7 {[%emt 0:00:33]} 40. Ng6 {[%emt 0:00:39] Weighted Error Value: White=0.09 (flawless) /Black=0.11 (very precise)} 1-0

[Event "37th ECCC 2022"]
[Site "Mayrhofen"]
[Date "2022.10.06"]
[Round "4.49"]
[White "Boruchovsky, Avital"]
[Black "Shengelia, David"]
[Result "1-0"]
[ECO "B30"]
[WhiteElo "2548"]
[BlackElo "2460"]
[Annotator "TA"]
[PlyCount "87"]
[EventDate "2022.10.03"]
[EventType "team-tourn"]
[EventCountry "AUT"]
[SourceTitle "playchess.com"]
[Source "ChessBase"]
[SourceQuality "1"]
[TimeControl "40/5400+30:1800+30"]

{[%evp 11,87,30,35,38,31,9,35,14,0,0,0,0,0,0,0,0,0,0,0,0,0,0,37,0,0,0,0,0,0,0,0,0,0,0,20,18,32,-3,8,0,23,0,14,2,0,-20,-20,-20,-20,-20,0,0,77,84,130,83,858,857,833,756,2127,1339,4133,4133,4133,4133,4133,4133,29970,29972,29967,29968,5742,5726,29991,29992,29992,29993]} 1. e4 {[%emt 0:00:13]} c5 {[%emt 0:00:14]} 2. Nf3 {[%emt 0:00:06]} Nc6 {[%emt 0:00:08]} 3. Bb5 {[%emt 0:00:06]} e6 {[%emt 0:00:19]} 4. O-O {[%emt 0:00:14]} Nge7 {[%emt 0:00:08]} 5. Re1 {[%emt 0:00:21]} Ng6 {[%emt 0:00:17]} 6. c3 {[%emt 0:00:43]} d5 {[%emt 0:00:47]} 7. h4 {[%emt 0:00:27][%cal Bh2h4,Bh4h5,Bh5h6][%mdl 32] B30: Sicilian: 2...Nc6 3 Bb5, lines without ...g6.} dxe4 {[%emt 0:00:22]} 8. Rxe4 {[%emt 0:00:06]} Bd6 {[%emt 0:00:14] [#]} 9. d4 $146 {[%emt 0:03:36] White is slightly better.} ({Predecessor:} 9. Bxc6+ bxc6 10. h5 Ne7 11. d4 Nf5 12. Na3 cxd4 13. cxd4 Be7 14. Bf4 Bb7 15. Qb3 {0-1 (40) Ragger,M (2647)-Erdos,V (2586) Chennai 2022}) 9... O-O {[%emt 0:15:36]} 10. Bxc6 {[%emt 0:07:26]} bxc6 {[%emt 0:00:05]} 11. h5 {[%emt 0:00:07]} Ne7 {[%emt 0:07:44]} 12. h6 {[%emt 0:05:32]} g6 {[%emt 0:03:35]} 13. Na3 {[%emt 0:05:59]} Nf5 {[%emt 0:21:21]} 14. Nc4 {[%emt 0:14:02]} Bc7 {[%emt 0:04:17]} 15. Bf4 {[%emt 0:20:32]} cxd4 {[%emt 0:11:08]} 16. Nxd4 {[%emt 0:06:35] [#] Bxc7 is the strong threat.} c5 {[%emt 0:01:00]} 17. Nxf5 {[%emt 0:13:51] Pair of Knights!} (17. Bxc7 {is interesting.} Qxc7 18. Nxf5 exf5 19. Re3) 17... Qxd1+ {[%emt 0:00:54]} (17... exf5 {with more complications.} 18. Qxd8 Bxd8 19. Ree1 Be6) 18. Rxd1 {[%emt 0:00:03]} exf5 {[%emt 0:00:16]} 19. Bxc7 {[%emt 0:00:07]} fxe4 {[%emt 0:00:04]} 20. Nd6 $1 {[%emt 0:00:06]} f5 {[%emt 0:03:59][%cal Oc8b7]} 21. Rd5 $1 {[%emt 0:01:07]} Be6 {[%emt 0:00:28]} 22. Rxc5 {[%emt 0:01:26]} Bxa2 {[%emt 0:02:24]} 23. Re5 {[%emt 0:07:19]} Rf6 {[%emt 0:02:27]} 24. c4 {[%emt 0:00:04]} Raf8 {[%emt 0:10:13]} 25. b4 {[%emt 0:07:45]} g5 {[%emt 0:10:49]} 26. b5 {[%emt 0:00:16]} (26. Ra5 $5 {[%cal Ra5a2]} Bb3 27. Rxa7 $11) 26... Rxh6 {[%emt 0:00:37]} 27. Nxf5 {[%emt 0:02:14]} Rhf6 {[%emt 0:00:03]} 28. Nd6 {[%emt 0:02:53]} h6 {[%emt 0:00:17]} 29. Nxe4 {[%emt 0:00:34]} Rf5 {[%emt 0:00:36] Hoping for ...Rxe5.} 30. c5 {[%emt 0:00:19]} Bb1 {[%emt 0:03:08] White must now prevent ...Rxe5.} 31. Nc3 {[%emt 0:00:50]} Rxf2 {[%emt 0:01:22]} 32. Bd6 $16 {[%emt 0:00:04]} Rf1+ {[%emt 0:00:10]} 33. Kh2 {[%emt 0:00:00] White is more active.} R8f4 {[%emt 0:01:18][%mdl 8192] This costs Black the game.} (33... Rc8 $16) 34. Re8+ $18 {[%emt 0:00:28][%mdl 64] [#] Discovered Attack} Kf7 {[%emt 0:00:19]} 35. Rf8+ {[%emt 0:00:19]} Kg7 {[%emt 0:00:14]} 36. Rxf4 {[%emt 0:00:31]} gxf4 {[%emt 0:00:03][%mdl 4096] Endgame KRB-KBN} 37. b6 {[%emt 0:00:06]} axb6 {[%emt 0:00:23]} 38. cxb6 {[%emt 0:00:01] Threatening mate with b7.} f3 {[%emt 0:01:20]} 39. b7 {[%emt 0:00:32]} f2 {[%emt 0:00:39]} 40. b8=Q {[%emt 0:00:16]} Rh1+ {[%emt 0:00:04]} 41. Kxh1 {[%emt 0:30:13]} f1=Q+ {[%emt 0:30:03]} 42. Kh2 {[%emt 0:00:04] White threatens Nd5 and mate.} Bf5 {[%emt 0:00:18]} 43. Qf8+ {[%emt 0:01:48]} Kg6 {[%emt 0:00:05]} 44. Nd5 {[%emt 0:00:16] Weighted Error Value: White=0.06 (flawless) /Black=0.43} 1-0

[Event "37th ECCC 2022"]
[Site "Mayrhofen"]
[Date "2022.10.06"]
[Round "4.50"]
[White "Doric, Darko"]
[Black "Erenberg, Ariel"]
[Result "0-1"]
[ECO "E32"]
[WhiteElo "2457"]
[BlackElo "2516"]
[Annotator "TA"]
[PlyCount "72"]
[EventDate "2022.10.03"]
[EventType "team-tourn"]
[EventCountry "AUT"]
[SourceTitle "playchess.com"]
[Source "ChessBase"]
[SourceQuality "1"]
[TimeControl "40/5400+30:1800+30"]

{[%evp 12,72,0,0,0,0,0,0,0,-6,-14,0,-5,-24,-3,-17,-18,-14,14,7,0,-30,-27,-29,-46,-81,-94,-127,-76,-133,-145,-416,-387,-392,-406,-565,-328,-344,-342,-340,-352,-348,-352,-353,-337,-343,-364,-431,-425,-454,-460,-445,-445,-449,-449,-567,-562,-573,-566,-649,-613,-678,-657]} 1. d4 {[%emt 0:00:03]} Nf6 {[%emt 0:00:06]} 2. c4 {[%emt 0:00:05]} e6 {[%emt 0:00:02]} 3. Nc3 {[%emt 0:00:06]} Bb4 {[%emt 0:00:03]} 4. Qc2 {[%emt 0:00:06]} b6 {[%emt 0:00:03]} 5. a3 {[%emt 0:00:46]} Bxc3+ {[%emt 0:00:55]} 6. Qxc3 {[%emt 0:00:06]} Bb7 {[%emt 0:01:55]} 7. Bg5 {[%emt 0:00:11]} h6 {[%emt 0:01:19] E32: Nimzo-Indian: Classical (4 Qc2): 4...0-0.} 8. Bxf6 {[%emt 0:01:52]} Qxf6 {[%emt 0:00:07]} 9. e3 {[%emt 0:03:16]} O-O {[%emt 0:15:07] The position is equal.} 10. Ne2 {[%emt 0:00:07]} d6 {[%emt 0:00:11]} 11. Rd1 {[%emt 0:03:42]} Nd7 {[%emt 0:02:10]} 12. Qc2 {[%emt 0:05:35] [#]} Qe7 $146 {[%emt 0:03:31]} ({Predecessor:} 12... Rfe8 13. Nc3 a6 14. f3 Qh4+ 15. Qf2 Qxf2+ 16. Kxf2 d5 17. Bd3 dxc4 18. Bxc4 b5 {1-0 (59) Ng,J (1641)-Frost,P (1896) Vientiane 2018}) 13. Nc3 {[%emt 0:01:55]} f5 {[%emt 0:01:59]} 14. f3 {[%emt 0:02:25]} c5 {[%emt 0:12:37]} (14... e5 $5 {[%cal Re5d4]} 15. d5 Qg5 $11) 15. Qd2 {[%emt 0:09:12]} Rad8 {[%emt 0:07:51]} 16. Be2 {[%emt 0:00:50]} Qh4+ {[%emt 0:02:21]} 17. g3 {[%emt 0:00:15]} Qh3 {[%emt 0:00:12] aiming for ...Qg2.} 18. Kf2 {[%emt 0:00:25] Against Qg2+} cxd4 {[%emt 0:04:18]} 19. Qxd4 {[%emt 0:01:33]} Ne5 {[%emt 0:00:46]} (19... Nf6 $142 $1 {[%cal Of5f4] Strongly threatening ...f4!} 20. Bf1 Qh5) 20. Rdf1 {[%emt 0:04:56]} ({Better is} 20. Nb5) 20... g5 $17 {[%emt 0:00:07] Black is much more active.} 21. e4 $2 {[%emt 0:18:27][%mdl 8192] This costs White the game.} (21. Ke1 $17) 21... fxe4 $1 $19 {[%emt 0:07:09]} 22. Nxe4 {[%emt 0:00:03]} Qf5 {[%emt 0:02:42][%csl LRe4,LRf3]} (22... g4 $2 23. f4 $19) 23. Nxd6 {[%emt 0:08:20]} Qf6 {[%emt 0:08:56][%cal Rb7f3]} (23... Nxf3 24. Bxf3 Qc2+ 25. Ke3 Rxf3+ 26. Rxf3 $17) 24. Rd1 {[%emt 0:00:35]} ({Avoid the trap} 24. Kg2 $2 g4 25. Kf2 gxf3 $19) 24... Bxf3 {[%emt 0:06:08] ( -> ...Rxd6)} 25. Rhf1 {[%emt 0:02:53]} Ng4+ {[%emt 0:04:33][%cal Be5g4,Bg4e3,Be3f1,Bf1h2,Bh2f3][%mdl 32]} ({Not} 25... Bxe2+ 26. Kxe2 Qg7 27. b4 $14) 26. Ke1 {[%emt 0:00:02] [#]} Qxd4 $1 {[%emt 0:00:08] Really sharp!} (26... Nxh2 27. Qxf6 Rxf6 28. Rf2 Bxe2 29. Kxe2 Rxf2+ 30. Kxf2 $17) 27. Rxd4 {[%emt 0:00:04] [#]} Ne3 $1 {[%emt 0:00:12] White must now prevent ...Nc2+.} ({Weaker is} 27... Nxh2 28. Rf2 Bxe2 29. Kxe2 Rxf2+ 30. Kxf2 $17) 28. Rd3 {[%emt 0:08:59]} Nxf1 {[%emt 0:00:14]} 29. Bxf3 {[%emt 0:00:02]} Nxh2 {[%emt 0:01:31] Black is clearly winning.} 30. Be2 {[%emt 0:01:03]} g4 {[%emt 0:00:15]} 31. b4 {[%emt 0:00:03]} Nf3+ {[%emt 0:00:14]} 32. Kd1 {[%emt 0:00:02]} Ne5 {[%emt 0:00:15]} 33. Rd4 {[%emt 0:00:09]} h5 {[%emt 0:02:21] ...Nf3 is the strong threat.} 34. c5 {[%emt 0:00:02]} Nf7 {[%emt 0:00:31]} 35. Bb5 {[%emt 0:03:46]} Nxd6 {[%emt 0:00:48]} 36. cxd6 {[%emt 0:00:02]} Rf3 {[%emt 0:00:50][%csl LRa3,LRg3] Weighted Error Value: White=0.41/Black=0.20 (precise)} 0-1

[Event "37th ECCC 2022"]
[Site "Mayrhofen"]
[Date "2022.10.06"]
[Round "4.51"]
[White "Gorshtein, Ido"]
[Black "Tica, Sven"]
[Result "1-0"]
[ECO "D53"]
[WhiteElo "2471"]
[BlackElo "2422"]
[Annotator "TA"]
[PlyCount "119"]
[EventDate "2022.10.03"]
[EventType "team-tourn"]
[EventCountry "AUT"]
[SourceTitle "playchess.com"]
[Source "ChessBase"]
[SourceQuality "1"]
[TimeControl "40/5400+30:1800+30"]

{[%evp 20,119,72,54,115,32,54,50,58,57,54,37,62,35,33,32,34,33,38,38,39,14,14,14,30,22,32,0,18,25,29,29,32,24,24,29,29,27,47,47,42,42,47,42,42,42,48,42,43,31,57,4,6,8,5,8,8,8,9,9,8,0,16,0,0,11,8,16,44,44,77,86,86,44,44,44,44,16,16,0,352,417,323,311,614,581,5812,5618,4667,4660,4555,2995,29971,29972,29976,29977,29975,29974,29969,5804,4614,2337]} 1. d4 {[%emt 0:00:04]} d5 {[%emt 0:00:06]} 2. c4 {[%emt 0:00:04]} e6 {[%emt 0:00:05]} 3. Nc3 {[%emt 0:00:03]} Nf6 {[%emt 0:00:07]} 4. Bg5 {[%emt 0:00:08]} Be7 {[%emt 0:02:46]} 5. e3 {[%emt 0:00:09]} Nbd7 {[%emt 0:02:11]} 6. cxd5 {[%emt 0:01:09]} exd5 {[%emt 0:00:51]} 7. Bd3 {[%emt 0:00:47]} c6 {[%emt 0:02:12]} 8. Nge2 {[%emt 0:01:18]} O-O {[%emt 0:00:35]} 9. Qc2 {[%emt 0:02:46]} Re8 {[%emt 0:01:23]} 10. O-O {[%emt 0:07:38]} Ne4 {[%emt 0:07:39]} 11. Bf4 {[%emt 0:12:33][%cal Oc3d5] [#] Strongly threatening Nxd5!} (11. Nxe4 dxe4 12. Bxe7 exd3 13. Bxd8 dxc2 $15) 11... Nxc3 {[%emt 0:17:29] D36: Queen's Gambit Declined: Exchange Variation: Main line (5 Bg5 c6 6 Qc2).} (11... Ndf6 $14) 12. bxc3 {[%emt 0:02:04]} ({Much weaker is} 12. Nxc3 $6 Nf6 $11) ({White should try} 12. Bxh7+ $16 Kh8 13. Nxc3) 12... Nf8 {[%emt 0:05:37]} 13. c4 {[%emt 0:02:59]} dxc4 {[%emt 0:03:11] White is slightly better.} 14. Bxc4 {[%emt 0:00:15] [#]} Be6 $146 {[%emt 0:01:14]} ({Predecessor:} 14... Bd6 15. Qb3 Ne6 16. a4 Rb8 17. Bg3 Bxg3 18. Nxg3 Qf6 19. Ne4 Qe7 20. Rae1 Kh8 {1-0 (42) Saber,Y (2266)-Boguszlavszkij,J (2173) Zalakaros 2018}) 15. Rab1 {[%emt 0:02:00]} Qd7 {[%emt 0:00:34]} 16. Rfd1 {[%emt 0:02:16] White is more active.} Bxc4 {[%emt 0:08:28]} 17. Qxc4 {[%emt 0:00:04]} b6 {[%emt 0:00:10]} 18. a4 {[%emt 0:04:21]} Ne6 {[%emt 0:03:39]} 19. Bg3 {[%emt 0:00:51]} Red8 {[%emt 0:04:02]} 20. Nf4 {[%emt 0:09:27]} Nxf4 {[%emt 0:08:35]} 21. Bxf4 {[%emt 0:00:03]} Qd5 {[%emt 0:00:08]} 22. Qxd5 {[%emt 0:12:54]} Rxd5 {[%emt 0:03:33]} 23. e4 {[%emt 0:02:45]} (23. Rbc1 $5 {[%cal Rc1c6]}) 23... Rd7 {[%emt 0:01:00]} 24. Be3 {[%emt 0:08:17]} Rad8 {[%emt 0:03:30][%cal Oe7c5]} 25. Rdc1 {[%emt 0:02:02] Prevents Bc5.} c5 {[%emt 0:08:22]} 26. dxc5 {[%emt 0:07:11]} Bxc5 {[%emt 0:00:06]} 27. Bxc5 {[%emt 0:00:08]} bxc5 $14 {[%emt 0:00:02][%mdl 4096] Endgame KRR-KRR} 28. f3 Rc7 {[%emt 0:00:45]} 29. Rc4 {[%emt 0:02:36]} Kf8 {[%emt 0:02:05]} 30. Rbc1 {[%emt 0:01:01]} Rdc8 {[%emt 0:00:43]} 31. Kf2 {[%emt 0:00:46]} Ke7 {[%emt 0:00:15]} 32. Ke3 {[%emt 0:00:06]} Ke6 {[%emt 0:02:03]} 33. g4 {[%emt 0:08:10]} g5 {[%emt 0:04:59]} 34. h4 {[%emt 0:02:24]} h6 {[%emt 0:00:05]} 35. hxg5 {[%emt 0:00:54]} ({Better is} 35. h5 $14) 35... hxg5 $11 {[%emt 0:00:06]} 36. f4 {[%emt 0:00:22]} gxf4+ {[%emt 0:00:35]} 37. Kxf4 {[%emt 0:00:02]} f6 {[%emt 0:01:19]} 38. R1c2 {[%emt 0:03:21]} Rc6 {[%emt 0:01:15]} 39. Rh2 {[%emt 0:01:55]} Rb8 {[%emt 0:03:48]} 40. Rhc2 {[%emt 0:01:34]} Rbc8 {[%emt 0:00:40]} 41. a5 {[%emt 0:04:37]} R6c7 {[%emt 0:10:56]} 42. Rc1 {[%emt 0:01:11]} Rc6 {[%emt 0:02:29]} 43. Rh1 {[%emt 0:04:57]} R6c7 {[%emt 0:00:07]} 44. Rh5 {[%emt 0:01:08]} a6 {[%emt 0:02:22]} 45. Rf5 {[%emt 0:02:25]} Rc6 {[%emt 0:01:33]} 46. Rd5 {[%emt 0:00:02]} R6c7 {[%emt 0:00:59]} 47. Rh5 {[%emt 0:00:03]} Rc6 {[%emt 0:02:31]} 48. Rh6 {[%emt 0:04:45]} Rg8 {[%emt 0:01:50]} 49. Rh7 {[%emt 0:02:18]} Rg6 $2 {[%emt 0:02:19][%mdl 8192]} (49... Rb8 $11 {and Black has nothing to worry.}) 50. Rh5 $18 {[%emt 0:01:54]} Rd6 {[%emt 0:07:05]} 51. Rcxc5 {[%emt 0:01:08]} ({But not} 51. Rhxc5 Rg7 52. Rb4 Rgd7 $18) 51... Rd1 $2 {[%emt 0:00:16]} (51... Rg7 52. Rh6 Kd7) 52. Rc6+ {[%emt 0:00:38]} Rd6 {[%emt 0:00:42]} 53. Rxd6+ {[%emt 0:00:56]} Kxd6 {[%emt 0:00:01] KR-KR} 54. Kf5 {[%emt 0:00:09]} Rg8 {[%emt 0:00:01]} 55. Rh6 {[%emt 0:00:37]} Rg5+ {[%emt 0:00:05]} 56. Kxf6 {[%emt 0:00:06]} Rxa5 {[%emt 0:00:04]} 57. Rh5 {[%emt 0:01:07]} Ra1 {[%emt 0:00:12]} 58. Rd5+ {[%emt 0:00:39]} Kc6 {[%emt 0:00:05]} 59. g5 {[%emt 0:00:11] [#] White wants to mate with g6.} Re1 {[%emt 0:00:19]} 60. Re5 {[%emt 0:00:23] Weighted Error Value: White=0.10 (very precise) /Black=0.39} 1-0

[Event "37th ECCC 2022"]
[Site "Mayrhofen"]
[Date "2022.10.06"]
[Round "4.52"]
[White "Lehner, Oliver"]
[Black "Rozen, Eytan"]
[Result "1/2-1/2"]
[ECO "B31"]
[WhiteElo "2398"]
[BlackElo "2462"]
[Annotator "TA"]
[PlyCount "105"]
[EventDate "2022.10.03"]
[EventType "team-tourn"]
[EventCountry "AUT"]
[SourceTitle "playchess.com"]
[Source "ChessBase"]
[SourceQuality "1"]
[TimeControl "40/5400+30:1800+30"]

{[%evp 12,105,26,10,18,16,26,0,0,0,2,6,0,-34,13,-4,-10,-27,-27,-26,-25,-31,-21,-31,-20,-13,-32,-31,-25,-58,-48,-82,-54,-87,-70,-86,-64,-87,-71,-62,-57,-62,-65,-64,-63,-71,-62,-80,-80,-69,-76,-74,-74,-99,-93,-97,-97,-91,-86,-74,-59,-52,-58,-58,-35,-35,-35,-35,-35,-35,-35,-35,-35,-35,-35,-35,0,-8,0,-35,-8,-2,-4,-35,-35,-40,-35,-35,-19,-40,-40,-40,-40,-40,-35,-35]} 1. e4 {[%emt 0:00:03]} c5 {[%emt 0:00:54]} 2. Nf3 {[%emt 0:00:07]} Nc6 {[%emt 0:00:14]} 3. Bb5 {[%emt 0:00:09]} g6 {[%emt 0:00:11]} 4. Bxc6 {[%emt 0:00:16]} dxc6 {[%emt 0:00:07]} 5. d3 {[%emt 0:00:11]} Bg7 {[%emt 0:00:07]} 6. h3 {[%emt 0:00:18]} Nf6 {[%emt 0:00:22]} 7. Nc3 {[%emt 0:01:21]} Nd7 {[%emt 0:00:07] B31: Sicilian: 2...Nc6 3 Bb5 g6.} 8. O-O {[%emt 0:06:13]} e5 {[%emt 0:01:01]} 9. Nh2 {[%emt 0:01:35]} Nf8 {[%emt 0:04:10] The position is equal.} 10. f4 {[%emt 0:00:31]} exf4 {[%emt 0:00:08]} 11. Bxf4 {[%emt 0:00:05]} Ne6 {[%emt 0:00:08]} 12. Bg3 {[%emt 0:00:08]} Nd4 {[%emt 0:05:35]} (12... O-O $15) 13. Nf3 {[%emt 0:03:35]} O-O {[%emt 0:02:37]} 14. Qd2 {[%emt 0:06:58]} f5 {[%emt 0:09:14]} 15. exf5 {[%emt 0:06:09] [#]} Bxf5 $146 {[%emt 0:02:51]} ({Predecessor:} 15... Nxf3+ 16. Rxf3 Bxf5 17. Bf2 c4 18. d4 Qd7 19. Rd1 b5 20. a3 a5 21. Qc1 Rae8 {0-1 (47) Okhotnik,V (2446)-Cuenca Jimenez,J (2477) Hamburg 2012}) 16. Nxd4 {[%emt 0:00:07]} Qxd4+ {[%emt 0:00:50]} 17. Bf2 {[%emt 0:06:35]} Qb4 {[%emt 0:09:11]} 18. Rab1 {[%emt 0:07:05]} c4 {[%emt 0:00:51]} 19. a3 {[%emt 0:07:58]} Qd6 {[%emt 0:00:13]} 20. g4 {[%emt 0:00:07]} Be6 {[%emt 0:02:04][%cal Of8f2] [#] ...Rxf2! is the strong threat.} 21. Ne4 {[%emt 0:00:08]} Qd5 {[%emt 0:00:37]} 22. Qe2 {[%emt 0:06:14] Inhibits Rf3.} cxd3 {[%emt 0:02:01]} 23. cxd3 {[%emt 0:00:04]} b6 {[%emt 0:04:13]} 24. b4 {[%emt 0:08:48]} Rad8 {[%emt 0:04:52]} 25. Bh4 {[%emt 0:03:11]} Qd4+ {[%emt 0:03:34]} 26. Kg2 {[%emt 0:04:18]} Rde8 {[%emt 0:05:39]} ({Reject} 26... Qxd3 27. Nf6+ Rxf6 28. Qxd3 Rxd3 29. Bxf6) 27. Rxf8+ {[%emt 0:08:04]} Rxf8 {[%emt 0:00:07]} 28. Bf2 {[%emt 0:00:41]} Qd5 {[%emt 0:03:04]} 29. a4 {[%emt 0:00:18]} Rd8 {[%emt 0:02:49]} 30. Re1 {[%emt 0:04:25]} Bf7 {[%emt 0:04:40] This bishop pair is nice.} 31. Bh4 {[%emt 0:04:06]} Rd7 {[%emt 0:00:43]} 32. a5 {[%emt 0:08:00]} bxa5 {[%emt 0:06:18]} 33. bxa5 {[%emt 0:00:05]} Qxa5 {[%emt 0:00:48]} 34. Nf6+ {[%emt 0:00:57]} Bxf6 {[%emt 0:00:03]} 35. Bxf6 {[%emt 0:00:05]} Rxd3 {[%emt 0:05:49]} 36. Qxd3 {[%emt 0:00:59]} Qxe1 $17 {[%emt 0:00:04][%mdl 4096] Endgame KQB-KQB} 37. Bc3 {[%emt 0:00:49]} Qe7 {[%emt 0:00:45]} 38. Qd4 {[%emt 0:00:56][%csl Gc3][%cal Rd4g7] [#]} Bd5+ {[%emt 0:00:09]} 39. Kg3 {[%emt 0:02:00]} Kf7 {[%emt 0:02:05]} (39... Qa3 $2 40. Qg7#) 40. Qf4+ {[%emt 0:01:23]} Ke8 {[%emt 0:00:23]} 41. Qb8+ {[%emt 0:34:07]} Qd8 {[%emt 0:30:04]} 42. Qxa7 {[%emt 0:00:21]} Qd6+ {[%emt 0:00:07]} 43. Kh4 {[%emt 0:00:07]} Qd8+ {[%emt 0:11:35]} 44. Kg3 {[%emt 0:00:15]} Qd6+ {[%emt 0:02:08]} 45. Kh4 {[%emt 0:00:04]} Be4 {[%emt 0:00:22]} 46. Kg5 {[%emt 0:00:00]} Bg2 {[%emt 0:00:00]} 47. Qe3+ {[%emt 0:00:00]} Qe7+ {[%emt 0:00:00]} 48. Qxe7+ {[%emt 0:00:00]} Kxe7 {[%emt 0:00:00]} 49. h4 {[%emt 0:00:00]} Ke6 {[%emt 0:00:00]} 50. Kf4 {[%emt 0:00:00]} Kd5 {[%emt 0:00:00] Black is slightly better.} 51. Ke3 {[%emt 0:00:00]} c5 {[%emt 0:00:00]} 52. g5 {[%emt 0:00:00]} Be4 {[%emt 0:00:00]} 53. Bg7 {[%emt 0:00:00] Weighted Error Value: White=0.09 (flawless) /Black=0.08 (flawless)} 1/2-1/2